[Event "*** Titled Tuesday Blitz"]
[Site "Chess.com"]
[Date "2021.04.20"]
[Round "4"]
[White "eduardoperalta"]
[Black "campomania3"]
[Result "1-0"]
[WhiteElo "2480"]
[BlackElo "2203"]
[TimeControl "180+1"]
[EndTime "10:36:30 PDT"]
[Termination "eduardoperalta won by resignation"]

1. d4 {[%clk 0:03:00.9]} 1... d5 {[%clk 0:03:00]} 2. Nf3 {[%clk 0:02:59.9]} 2...
Nf6 {[%clk 0:02:59.2]} 3. c4 {[%clk 0:03:00.2]} 3... c6 {[%clk 0:02:59.7]} 4.
Nc3 {[%clk 0:02:59.5]} 4... dxc4 {[%clk 0:03:00.2]} 5. a4 {[%clk 0:02:58.4]}
5... e6 {[%clk 0:03:00.7]} 6. e3 {[%clk 0:02:57.5]} 6... c5 {[%clk 0:03:01]} 7.
Bxc4 {[%clk 0:02:56.7]} 7... Nc6 {[%clk 0:03:01.4]} 8. O-O {[%clk 0:02:56.1]}
8... cxd4 {[%clk 0:03:01.9]} 9. exd4 {[%clk 0:02:56.7]} 9... Be7 {[%clk
0:03:02]} 10. Bg5 {[%clk 0:02:48.3]} 10... h6 {[%clk 0:02:58]} 11. Bh4 {[%clk
0:02:47.2]} 11... O-O {[%clk 0:02:57]} 12. Re1 {[%clk 0:02:44.6]} 12... Nb4
{[%clk 0:02:40]} 13. Qd2 {[%clk 0:02:42.9]} 13... Bd7 {[%clk 0:02:28.9]} 14. Ne5
{[%clk 0:02:36.7]} 14... Bc6 {[%clk 0:02:27.7]} 15. Rad1 {[%clk 0:02:30.6]}
15... Bd5 {[%clk 0:02:04.8]} 16. Nxd5 {[%clk 0:02:28.6]} 16... Nbxd5 {[%clk
0:01:59.7]} 17. Qe2 {[%clk 0:02:17.6]} 17... Rc8 {[%clk 0:01:55.1]} 18. Bb3
{[%clk 0:02:13]} 18... Qc7 {[%clk 0:01:01.1]} 19. Bg3 {[%clk 0:02:01.1]} 19...
Bd6 {[%clk 0:00:59.8]} 20. f4 {[%clk 0:01:39.2]} 20... Rfd8 {[%clk 0:00:57.1]}
21. Qf3 {[%clk 0:01:36.5]} 21... Ne7 {[%clk 0:00:47.1]} 22. Nxf7 {[%clk
0:01:31.8]} 22... Kxf7 {[%clk 0:00:44.1]} 23. Bxe6+ {[%clk 0:01:25.6]} 23... Kf8
{[%clk 0:00:43.7]} 24. Bh4 {[%clk 0:01:23.4]} 24... Ned5 {[%clk 0:00:29.1]} 25.
Bxd5 {[%clk 0:01:14.8]} 25... Nxd5 {[%clk 0:00:28.2]} 26. Qxd5 {[%clk
0:01:08.5]} 26... Bb4 {[%clk 0:00:21.7]} 27. Bxd8 {[%clk 0:01:03.8]} 27... Rxd8
{[%clk 0:00:20.3]} 28. Qf5+ {[%clk 0:01:03.9]} 28... Kg8 {[%clk 0:00:20.3]} 29.
Qe6+ {[%clk 0:01:02.5]} 1-0

[Event "*** Titled Tuesday Blitz"]
[Site "Chess.com"]
[Date "2021.04.20"]
[Round "4"]
[White "gmcorrales"]
[Black "BvsN"]
[Result "1-0"]
[WhiteElo "2800"]
[BlackElo "2360"]
[TimeControl "180+1"]
[EndTime "10:36:31 PDT"]
[Termination "gmcorrales won by resignation"]

1. e4 {[%clk 0:03:00.9]} 1... c5 {[%clk 0:03:00.2]} 2. Nf3 {[%clk 0:03:00.5]}
2... e6 {[%clk 0:03:00.7]} 3. d4 {[%clk 0:02:59.2]} 3... cxd4 {[%clk 0:03:01.6]}
4. Nxd4 {[%clk 0:03:00]} 4... a6 {[%clk 0:03:02.1]} 5. c4 {[%clk 0:02:59.5]}
5... Nf6 {[%clk 0:03:02.2]} 6. Nc3 {[%clk 0:02:58.9]} 6... Qc7 {[%clk
0:03:00.3]} 7. a3 {[%clk 0:02:56]} 7... b6 {[%clk 0:02:58.9]} 8. Qd3 {[%clk
0:02:53]} 8... Bb7 {[%clk 0:02:53]} 9. f4 {[%clk 0:02:52.6]} 9... d6 {[%clk
0:02:48]} 10. Be2 {[%clk 0:02:51.7]} 10... Nbd7 {[%clk 0:02:45.5]} 11. b4 {[%clk
0:02:50.6]} 11... Be7 {[%clk 0:02:43.1]} 12. Bb2 {[%clk 0:02:50.1]} 12... Rc8
{[%clk 0:02:36.4]} 13. O-O {[%clk 0:02:50.1]} 13... O-O {[%clk 0:02:32.6]} 14.
Rac1 {[%clk 0:02:43.1]} 14... Qb8 {[%clk 0:02:31.4]} 15. Nd5 {[%clk 0:02:42.8]}
15... exd5 {[%clk 0:02:26.7]} 16. exd5 {[%clk 0:02:43.7]} 16... Rfe8 {[%clk
0:02:24.4]} 17. Qh3 {[%clk 0:02:35]} 17... Nf8 {[%clk 0:02:07.2]} 18. Bd3 {[%clk
0:02:33.1]} 18... b5 {[%clk 0:01:59]} 19. Nf5 {[%clk 0:02:20.5]} 19... Bd8
{[%clk 0:01:25.5]} 20. Qg3 {[%clk 0:02:02.7]} 20... Ng6 {[%clk 0:01:23.5]} 21.
c5 {[%clk 0:01:47.9]} 21... dxc5 {[%clk 0:01:10.3]} 22. bxc5 {[%clk 0:01:48.8]}
22... Bxd5 {[%clk 0:01:04.1]} 23. Nd6 {[%clk 0:01:25.8]} 23... Be7 {[%clk
0:00:37.4]} 24. Nxe8 {[%clk 0:01:19.2]} 24... Rxe8 {[%clk 0:00:33.5]} 25. Rfe1
{[%clk 0:01:18.5]} 25... Bd8 {[%clk 0:00:06.6]} 26. f5 {[%clk 0:01:10.6]} 26...
Rxe1+ {[%clk 0:00:03.5]} 27. Rxe1 {[%clk 0:01:09.7]} 27... Nf8 {[%clk 0:00:04]}
28. Qxb8 {[%clk 0:01:09.1]} 1-0

[Event "*** Titled Tuesday Blitz"]
[Site "Chess.com"]
[Date "2021.04.20"]
[Round "4"]
[White "JoliyRoger"]
[Black "politeplayer"]
[Result "0-1"]
[WhiteElo "2402"]
[BlackElo "2240"]
[TimeControl "180+1"]
[EndTime "10:36:35 PDT"]
[Termination "politeplayer won on time"]

1. d4 {[%clk 0:03:00.9]} 1... e6 {[%clk 0:03:00.6]} 2. c4 {[%clk 0:02:58.5]}
2... f5 {[%clk 0:03:01]} 3. g3 {[%clk 0:02:58]} 3... Nf6 {[%clk 0:03:01.4]} 4.
Bg2 {[%clk 0:02:58.9]} 4... c6 {[%clk 0:03:00.7]} 5. Nh3 {[%clk 0:02:58.8]} 5...
d6 {[%clk 0:02:59.2]} 6. O-O {[%clk 0:02:58.1]} 6... Be7 {[%clk 0:02:58.7]} 7.
b3 {[%clk 0:02:57.4]} 7... O-O {[%clk 0:02:56.9]} 8. Bb2 {[%clk 0:02:57.9]} 8...
Nbd7 {[%clk 0:02:42.9]} 9. Qc2 {[%clk 0:02:46]} 9... a5 {[%clk 0:02:34.7]} 10.
Nd2 {[%clk 0:02:37.4]} 10... a4 {[%clk 0:02:19.8]} 11. Rae1 {[%clk 0:02:15.3]}
11... axb3 {[%clk 0:02:15]} 12. axb3 {[%clk 0:02:13.4]} 12... d5 {[%clk
0:02:11.9]} 13. Nf4 {[%clk 0:02:01.1]} 13... Nb8 {[%clk 0:02:11.6]} 14. Nf3
{[%clk 0:01:56.8]} 14... Ne4 {[%clk 0:02:01.8]} 15. Ne5 {[%clk 0:01:54.1]} 15...
Na6 {[%clk 0:01:44.3]} 16. Nfd3 {[%clk 0:01:53.1]} 16... Bd7 {[%clk 0:01:35.5]}
17. c5 {[%clk 0:01:39.4]} 17... Be8 {[%clk 0:01:32.1]} 18. f3 {[%clk 0:01:31.4]}
18... Ng5 {[%clk 0:01:23.8]} 19. Bc3 {[%clk 0:01:29.4]} 19... Nf7 {[%clk
0:01:17]} 20. Nxf7 {[%clk 0:01:10.7]} 20... Bxf7 {[%clk 0:01:16]} 21. Ne5 {[%clk
0:01:04.2]} 21... Bf6 {[%clk 0:01:14.6]} 22. b4 {[%clk 0:00:44.1]} 22... Nc7
{[%clk 0:01:13]} 23. Ra1 {[%clk 0:00:40]} 23... Rxa1 {[%clk 0:01:10.5]} 24. Rb1
{[%clk 0:00:40.5]} 24... Rxb1+ {[%clk 0:01:09.3]} 0-1

[Event "*** Titled Tuesday Blitz"]
[Site "Chess.com"]
[Date "2021.04.20"]
[Round "4"]
[White "MFguimaraes"]
[Black "twitchTriniCupid"]
[Result "1-0"]
[WhiteElo "2411"]
[BlackElo "2210"]
[TimeControl "180+1"]
[EndTime "10:36:36 PDT"]
[Termination "MFguimaraes won on time"]

1. e4 {[%clk 0:03:00.9]} 1... c6 {[%clk 0:02:59.9]} 2. Bc4 {[%clk 0:02:59.7]}
2... d5 {[%clk 0:03:00.8]} 3. Bb3 {[%clk 0:03:00.6]} 3... dxe4 {[%clk 0:03:00]}
4. Qh5 {[%clk 0:03:01]} 4... e6 {[%clk 0:02:58]} 5. Nc3 {[%clk 0:03:00]} 5...
Nf6 {[%clk 0:02:55.2]} 6. Qh4 {[%clk 0:02:59.8]} 6... Be7 {[%clk 0:02:36.3]} 7.
Nxe4 {[%clk 0:02:59.4]} 7... Nxe4 {[%clk 0:02:35.6]} 8. Qxe4 {[%clk 0:03:00.3]}
8... O-O {[%clk 0:02:35.3]} 9. d4 {[%clk 0:02:59.5]} 9... Nd7 {[%clk 0:02:34.9]}
10. Nf3 {[%clk 0:02:58.6]} 10... c5 {[%clk 0:02:33.4]} 11. Be3 {[%clk
0:02:53.9]} 11... Nf6 {[%clk 0:02:33.1]} 12. Qd3 {[%clk 0:02:51.7]} 12... cxd4
{[%clk 0:02:27.4]} 13. Bxd4 {[%clk 0:02:51.7]} 13... Qa5+ {[%clk 0:02:21.3]} 14.
Bc3 {[%clk 0:02:50]} 14... Qh5 {[%clk 0:02:20.4]} 15. O-O-O {[%clk 0:02:49.1]}
15... a5 {[%clk 0:02:16]} 16. a4 {[%clk 0:02:41.9]} 16... b6 {[%clk 0:01:52.9]}
17. Ne5 {[%clk 0:02:41.1]} 17... Ba6 {[%clk 0:01:50.6]} 18. Qg3 {[%clk
0:02:30.6]} 18... Ne4 {[%clk 0:01:42.7]} 19. Qe3 {[%clk 0:02:14.9]} 19... Bg5
{[%clk 0:01:37.9]} 20. f4 {[%clk 0:02:14.7]} 20... Nxc3 {[%clk 0:01:37.6]} 21.
bxc3 {[%clk 0:02:10.5]} 21... Bh6 {[%clk 0:01:30.5]} 22. g4 {[%clk 0:02:06.2]}
22... Qh4 {[%clk 0:01:30.5]} 23. g5 {[%clk 0:02:04.7]} 23... f6 {[%clk
0:01:26.3]} 24. Bxe6+ {[%clk 0:02:02.3]} 24... Kh8 {[%clk 0:01:26.1]} 25. gxh6
{[%clk 0:01:56.3]} 25... fxe5 {[%clk 0:01:26]} 26. hxg7+ {[%clk 0:01:56.5]}
26... Kxg7 {[%clk 0:01:26.9]} 27. Rhg1+ {[%clk 0:01:55.8]} 27... Kh8 {[%clk
0:01:26.6]} 28. Qxe5+ {[%clk 0:01:45.3]} 28... Qf6 {[%clk 0:01:26.5]} 29. Rd7
{[%clk 0:01:42.5]} 29... Rae8 {[%clk 0:00:46.8]} 30. Rxh7+ {[%clk 0:01:25.8]}
30... Kxh7 {[%clk 0:00:38.4]} 31. Qh5+ {[%clk 0:01:25.3]} 31... Qh6 {[%clk
0:00:36.2]} 32. Bf5+ {[%clk 0:01:25.2]} 32... Rxf5 {[%clk 0:00:34.5]} 33. Qxf5+
{[%clk 0:01:26.1]} 33... Kh8 {[%clk 0:00:30.5]} 34. Rg6 {[%clk 0:01:24.2]} 1-0

[Event "*** Titled Tuesday Blitz"]
[Site "Chess.com"]
[Date "2021.04.20"]
[Round "4"]
[White "Sanan_Sjugirov"]
[Black "NikolaGry"]
[Result "1-0"]
[WhiteElo "2926"]
[BlackElo "2709"]
[TimeControl "180+1"]
[EndTime "10:36:39 PDT"]
[Termination "Sanan_Sjugirov won by resignation"]

1. d4 {[%clk 0:03:00.9]} 1... d5 {[%clk 0:02:59.5]} 2. c4 {[%clk 0:03:00.6]}
2... Nc6 {[%clk 0:02:59.6]} 3. cxd5 {[%clk 0:02:59.2]} 3... Qxd5 {[%clk
0:02:59.3]} 4. e3 {[%clk 0:02:59.4]} 4... e5 {[%clk 0:02:59.5]} 5. Nc3 {[%clk
0:02:59.7]} 5... Bb4 {[%clk 0:02:59.5]} 6. a3 {[%clk 0:02:59.8]} 6... Bxc3+
{[%clk 0:02:59.4]} 7. bxc3 {[%clk 0:03:00.7]} 7... Qd6 {[%clk 0:02:58.8]} 8. a4
{[%clk 0:02:59.8]} 8... Nge7 {[%clk 0:02:56.6]} 9. Nf3 {[%clk 0:02:53]} 9... O-O
{[%clk 0:02:46.9]} 10. Ba3 {[%clk 0:02:51]} 10... Qf6 {[%clk 0:02:45.1]} 11. Be2
{[%clk 0:02:41.2]} 11... Rd8 {[%clk 0:02:29.2]} 12. O-O {[%clk 0:02:40.1]} 12...
Bg4 {[%clk 0:02:21]} 13. Nd2 {[%clk 0:02:36.7]} 13... Bxe2 {[%clk 0:02:17.5]}
14. Qxe2 {[%clk 0:02:37.6]} 14... Nd5 {[%clk 0:02:11.8]} 15. Rfc1 {[%clk
0:02:35.1]} 15... Qg6 {[%clk 0:01:37.4]} 16. Qf3 {[%clk 0:02:24.3]} 16... f5
{[%clk 0:01:15.5]} 17. c4 {[%clk 0:02:14.9]} 17... e4 {[%clk 0:01:13.4]} 18. Qg3
{[%clk 0:02:07.6]} 18... Qxg3 {[%clk 0:01:06.7]} 19. hxg3 {[%clk 0:02:08.5]}
19... Nb6 {[%clk 0:01:04.2]} 20. a5 {[%clk 0:02:00]} 20... Nd7 {[%clk
0:00:55.1]} 21. Rcb1 {[%clk 0:01:52.7]} 21... b6 {[%clk 0:00:52.9]} 22. a6
{[%clk 0:01:37.2]} 22... Nde5 {[%clk 0:00:47.1]} 23. Rb5 {[%clk 0:01:34.3]}
23... g6 {[%clk 0:00:40.4]} 24. Kf1 {[%clk 0:01:22.3]} 24... Nd3 {[%clk
0:00:38.6]} 25. Ke2 {[%clk 0:01:19]} 25... Rd7 {[%clk 0:00:30.8]} 26. g4 {[%clk
0:01:17.2]} 26... Rf8 {[%clk 0:00:25.1]} 27. gxf5 {[%clk 0:01:17.2]} 27... gxf5
{[%clk 0:00:25]} 28. g4 {[%clk 0:01:13.7]} 28... Rxd4 {[%clk 0:00:20.4]} 29.
Bxf8 {[%clk 0:01:12.4]} 1-0

[Event "*** Titled Tuesday Blitz"]
[Site "Chess.com"]
[Date "2021.04.20"]
[Round "4"]
[White "kritipatel"]
[Black "Pantata007"]
[Result "1-0"]
[WhiteElo "1740"]
[BlackElo "2227"]
[TimeControl "180+1"]
[EndTime "10:36:41 PDT"]
[Termination "kritipatel won on time"]

1. e4 {[%clk 0:03:00.7]} 1... e5 {[%clk 0:02:52.6]} 2. Nf3 {[%clk 0:03:00.3]}
2... Nc6 {[%clk 0:02:52.4]} 3. Bc4 {[%clk 0:03:00.1]} 3... Bc5 {[%clk 0:02:52]}
4. c3 {[%clk 0:02:59.8]} 4... Nf6 {[%clk 0:02:51.7]} 5. d3 {[%clk 0:02:59.7]}
5... O-O {[%clk 0:02:51.3]} 6. Nbd2 {[%clk 0:02:59]} 6... a5 {[%clk 0:02:50.3]}
7. Bb3 {[%clk 0:02:57.5]} 7... d6 {[%clk 0:02:49.2]} 8. h3 {[%clk 0:02:56.6]}
8... Be6 {[%clk 0:02:48.6]} 9. Nf1 {[%clk 0:02:56.2]} 9... Bxb3 {[%clk
0:02:47.5]} 10. axb3 {[%clk 0:02:57.1]} 10... d5 {[%clk 0:02:40.2]} 11. Qe2
{[%clk 0:02:53.3]} 11... h6 {[%clk 0:02:32.6]} 12. Ng3 {[%clk 0:02:52.8]} 12...
dxe4 {[%clk 0:02:25.3]} 13. dxe4 {[%clk 0:02:51.9]} 13... Qd7 {[%clk 0:02:24.2]}
14. O-O {[%clk 0:02:50.6]} 14... Qe6 {[%clk 0:02:23.7]} 15. Nf5 {[%clk 0:02:41]}
15... Qxb3 {[%clk 0:02:13]} 16. N3h4 {[%clk 0:02:37.1]} 16... Qe6 {[%clk
0:01:50.9]} 17. Qf3 {[%clk 0:02:34]} 17... Ne7 {[%clk 0:01:41]} 18. Bxh6 {[%clk
0:02:18.2]} 18... Ne8 {[%clk 0:00:51.5]} 19. Qg3 {[%clk 0:02:00.7]} 19... Ng6
{[%clk 0:00:30.7]} 20. b4 {[%clk 0:01:44]} 20... Be7 {[%clk 0:00:16.9]} 21.
Nxe7+ {[%clk 0:01:34.1]} 21... Nxe7 {[%clk 0:00:16.4]} 22. Bg5 {[%clk 0:01:30]}
22... a4 {[%clk 0:00:14]} 23. Ra3 {[%clk 0:01:27.4]} 23... b5 {[%clk 0:00:13.1]}
24. Rfa1 {[%clk 0:01:25.4]} 24... c6 {[%clk 0:00:05.2]} 25. c4 {[%clk
0:01:25.1]} 25... Ng6 {[%clk 0:00:02.3]} 26. Nxg6 {[%clk 0:01:23.3]} 26... Qxg6
{[%clk 0:00:02.3]} 27. Be7 {[%clk 0:01:21.2]} 27... f6 {[%clk 0:00:01.9]} 28.
Qxg6 {[%clk 0:01:19.9]} 28... Rf7 {[%clk 0:00:01.7]} 29. Bc5 {[%clk 0:01:18.8]}
1-0

[Event "*** Titled Tuesday Blitz"]
[Site "Chess.com"]
[Date "2021.04.20"]
[Round "4"]
[White "mamonika"]
[Black "GUST_b"]
[Result "0-1"]
[WhiteElo "2062"]
[BlackElo "2375"]
[TimeControl "180+1"]
[EndTime "10:36:42 PDT"]
[Termination "GUST_b won on time"]

1. e4 {[%clk 0:03:00.9]} 1... c5 {[%clk 0:02:57.7]} 2. Nf3 {[%clk 0:03:00.8]}
2... Nc6 {[%clk 0:02:57.9]} 3. d4 {[%clk 0:03:01.3]} 3... cxd4 {[%clk
0:02:58.8]} 4. Nxd4 {[%clk 0:03:02.2]} 4... g6 {[%clk 0:02:59]} 5. Nc3 {[%clk
0:02:54.3]} 5... Bg7 {[%clk 0:02:53.8]} 6. Be3 {[%clk 0:02:52.7]} 6... Nf6
{[%clk 0:02:51.5]} 7. Bc4 {[%clk 0:02:43.3]} 7... O-O {[%clk 0:02:51.3]} 8. O-O
{[%clk 0:02:38.8]} 8... d6 {[%clk 0:02:34]} 9. f3 {[%clk 0:02:14]} 9... Qb6
{[%clk 0:02:33.7]} 10. Kh1 {[%clk 0:01:28]} 10... Qxb2 {[%clk 0:02:25.9]} 11.
Ncb5 {[%clk 0:00:53.8]} 11... Qb4 {[%clk 0:01:58.8]} 12. Nc7 {[%clk 0:00:45.1]}
12... Rb8 {[%clk 0:01:58.6]} 13. Nxc6 {[%clk 0:00:40]} 13... bxc6 {[%clk
0:01:57.9]} 14. Rb1 {[%clk 0:00:38.1]} 14... Qxb1 {[%clk 0:01:55.5]} 15. Qxb1
{[%clk 0:00:38.1]} 15... Rxb1 {[%clk 0:01:56.1]} 16. Rxb1 {[%clk 0:00:38.9]}
16... c5 {[%clk 0:01:49.8]} 17. e5 {[%clk 0:00:35.2]} 17... Nd7 {[%clk
0:01:43.8]} 18. e6 {[%clk 0:00:32.3]} 18... Ne5 {[%clk 0:01:40.4]} 19. exf7+
{[%clk 0:00:30.1]} 19... Nxf7 {[%clk 0:01:36.3]} 20. Bg5 {[%clk 0:00:13.5]}
20... Bf6 {[%clk 0:01:24]} 21. Bxf6 {[%clk 0:00:03]} 21... exf6 {[%clk
0:01:24.9]} 22. Nd5 {[%clk 0:00:02.7]} 22... Kg7 {[%clk 0:01:23.2]} 23. Rb8
{[%clk 0:00:02.4]} 23... Ne5 {[%clk 0:01:21.8]} 24. Ne7 {[%clk 0:00:01.1]} 24...
Nxc4 {[%clk 0:01:17.9]} 25. Rxc8 {[%clk 0:00:01.8]} 25... Rxc8 {[%clk
0:01:15.7]} 26. Nxc8 {[%clk 0:00:02.7]} 26... a6 {[%clk 0:01:11.1]} 27. Kg1
{[%clk 0:00:02]} 27... Kf7 {[%clk 0:01:11.4]} 28. Kf2 {[%clk 0:00:02.5]} 28...
Ke6 {[%clk 0:01:11.8]} 29. Na7 {[%clk 0:00:01.4]} 29... Kd7 {[%clk 0:01:11.8]}
0-1

[Event "*** Titled Tuesday Blitz"]
[Site "Chess.com"]
[Date "2021.04.20"]
[Round "4"]
[White "FeketeBarika"]
[Black "Carolina-moon"]
[Result "0-1"]
[WhiteElo "2253"]
[BlackElo "2118"]
[TimeControl "180+1"]
[EndTime "10:36:45 PDT"]
[Termination "Carolina-moon won by resignation"]

1. Nf3 {[%clk 0:03:00.9]} 1... f5 {[%clk 0:02:56.9]} 2. g3 {[%clk 0:03:01.8]}
2... Nf6 {[%clk 0:02:56.6]} 3. Bg2 {[%clk 0:03:02.7]} 3... g6 {[%clk 0:02:57.2]}
4. O-O {[%clk 0:03:03.4]} 4... Bg7 {[%clk 0:02:57.9]} 5. d4 {[%clk 0:03:04]}
5... O-O {[%clk 0:02:58.4]} 6. c4 {[%clk 0:03:04.8]} 6... d6 {[%clk 0:02:58.9]}
7. Nc3 {[%clk 0:03:05.4]} 7... c6 {[%clk 0:02:59.5]} 8. Re1 {[%clk 0:03:04.6]}
8... Na6 {[%clk 0:02:58.6]} 9. e4 {[%clk 0:03:04.2]} 9... fxe4 {[%clk
0:02:58.9]} 10. Nxe4 {[%clk 0:03:05.1]} 10... Nxe4 {[%clk 0:02:58.6]} 11. Rxe4
{[%clk 0:03:04.5]} 11... Bf5 {[%clk 0:02:59.2]} 12. Re1 {[%clk 0:03:03.4]} 12...
e5 {[%clk 0:02:59.2]} 13. dxe5 {[%clk 0:03:02.7]} 13... dxe5 {[%clk 0:02:59.2]}
14. Bg5 {[%clk 0:02:55.3]} 14... Qxd1 {[%clk 0:02:54.2]} 15. Raxd1 {[%clk
0:02:56.2]} 15... Bg4 {[%clk 0:02:54.4]} 16. Rd3 {[%clk 0:02:53.9]} 16... e4
{[%clk 0:02:11]} 17. Rxe4 {[%clk 0:02:35.6]} 17... Bf5 {[%clk 0:01:54.5]} 18.
Rde3 {[%clk 0:02:31]} 18... Bxe4 {[%clk 0:01:54.5]} 19. Rxe4 {[%clk 0:02:31.9]}
19... Bxb2 {[%clk 0:01:48.7]} 20. Re7 {[%clk 0:02:30.8]} 20... Nc5 {[%clk
0:01:31.2]} 21. h4 {[%clk 0:02:29]} 21... Rf7 {[%clk 0:01:22.4]} 22. Re2 {[%clk
0:02:27.8]} 22... Bg7 {[%clk 0:01:18.4]} 23. Ne5 {[%clk 0:02:21.9]} 23... Re8
{[%clk 0:01:05.4]} 24. Bf4 {[%clk 0:02:15.7]} 24... Nd3 {[%clk 0:00:56.2]} 25.
Nxf7 {[%clk 0:01:52.6]} 25... Rxe2 {[%clk 0:00:57.1]} 26. Nd6 {[%clk 0:01:52.1]}
26... Nxf4 {[%clk 0:00:41.1]} 27. gxf4 {[%clk 0:01:50.3]} 27... Bd4 {[%clk
0:00:35.1]} 28. Nxb7 {[%clk 0:01:49]} 28... Rxf2 {[%clk 0:00:34.5]} 29. Kh1
{[%clk 0:01:46.8]} 29... c5 {[%clk 0:00:32.4]} 30. Nd6 {[%clk 0:01:43.6]} 30...
Rxa2 {[%clk 0:00:31.6]} 31. Bd5+ {[%clk 0:01:30.6]} 31... Kg7 {[%clk 0:00:29.7]}
32. Ne8+ {[%clk 0:01:30.1]} 32... Kf8 {[%clk 0:00:28]} 33. Nc7 {[%clk
0:01:30.6]} 33... a5 {[%clk 0:00:26.1]} 34. Ne6+ {[%clk 0:01:30.9]} 34... Ke7
{[%clk 0:00:24.8]} 35. Ng5 {[%clk 0:01:30.1]} 35... h6 {[%clk 0:00:20.4]} 36.
Nf7 {[%clk 0:01:23.1]} 36... a4 {[%clk 0:00:19.3]} 37. Nxh6 {[%clk 0:01:22.7]}
37... a3 {[%clk 0:00:18.4]} 38. f5 {[%clk 0:01:22.9]} 38... Rb2 {[%clk
0:00:14.2]} 39. fxg6 {[%clk 0:01:21.6]} 39... a2 {[%clk 0:00:14.3]} 40. Nf5+
{[%clk 0:01:21]} 40... Kd7 {[%clk 0:00:14.4]} 0-1

[Event "*** Titled Tuesday Blitz"]
[Site "Chess.com"]
[Date "2021.04.20"]
[Round "4"]
[White "Michaelson_11"]
[Black "KubaGepard"]
[Result "0-1"]
[WhiteElo "2211"]
[BlackElo "2410"]
[TimeControl "180+1"]
[EndTime "10:36:46 PDT"]
[Termination "KubaGepard won on time"]

1. e4 {[%clk 0:03:00.9]} 1... e5 {[%clk 0:02:59.3]} 2. Nf3 {[%clk 0:03:00.5]}
2... Nc6 {[%clk 0:02:59.1]} 3. Nc3 {[%clk 0:03:00.4]} 3... Nf6 {[%clk
0:02:58.8]} 4. Be2 {[%clk 0:03:01.3]} 4... g6 {[%clk 0:02:55]} 5. d4 {[%clk
0:03:00.8]} 5... exd4 {[%clk 0:02:54.5]} 6. Nxd4 {[%clk 0:03:01.7]} 6... Bg7
{[%clk 0:02:54.7]} 7. Nxc6 {[%clk 0:02:28.4]} 7... bxc6 {[%clk 0:02:53.8]} 8. e5
{[%clk 0:02:19]} 8... Nd5 {[%clk 0:02:52.7]} 9. Nxd5 {[%clk 0:02:17.5]} 9...
cxd5 {[%clk 0:02:53.1]} 10. Qxd5 {[%clk 0:02:17.6]} 10... Rb8 {[%clk 0:02:53.1]}
11. O-O {[%clk 0:02:00]} 11... O-O {[%clk 0:02:51.4]} 12. f4 {[%clk 0:01:51.8]}
12... d6 {[%clk 0:02:41]} 13. exd6 {[%clk 0:01:27.2]} 13... Be6 {[%clk
0:02:35.4]} 14. Qa5 {[%clk 0:00:51]} 14... Qxd6 {[%clk 0:02:27.1]} 15. c3 {[%clk
0:00:37]} 15... Rfe8 {[%clk 0:02:14.5]} 16. Bf3 {[%clk 0:00:25.8]} 16... Bc4
{[%clk 0:01:58.2]} 17. Rd1 {[%clk 0:00:25]} 17... Qe7 {[%clk 0:01:54.3]} 18. b3
{[%clk 0:00:18.8]} 18... Bb5 {[%clk 0:01:38.2]} 19. Qa3 {[%clk 0:00:13.3]} 19...
Qf6 {[%clk 0:01:31.1]} 20. Bd2 {[%clk 0:00:07.2]} 20... Qb6+ {[%clk 0:01:25.1]}
21. Kh1 {[%clk 0:00:06.5]} 21... Be2 {[%clk 0:01:25.7]} 22. Bxe2 {[%clk
0:00:04.2]} 22... Rxe2 {[%clk 0:01:25.3]} 23. Rac1 {[%clk 0:00:02.9]} 23... Bh6
{[%clk 0:01:21.3]} 24. Re1 {[%clk 0:00:02.6]} 24... Rxd2 {[%clk 0:01:19.2]} 25.
Rf1 {[%clk 0:00:02.5]} 25... Rbd8 {[%clk 0:01:17.4]} 26. Qe7 {[%clk 0:00:02.4]}
26... Qd6 {[%clk 0:01:15.2]} 27. Qh4 {[%clk 0:00:02.1]} 27... Bg7 {[%clk
0:01:10.9]} 28. c4 {[%clk 0:00:01.2]} 28... Rd1 {[%clk 0:01:06.2]} 0-1

[Event "*** Titled Tuesday Blitz"]
[Site "Chess.com"]
[Date "2021.04.20"]
[Round "4"]
[White "Zmof"]
[Black "akanga001"]
[Result "1-0"]
[WhiteElo "2231"]
[BlackElo "2001"]
[TimeControl "180+1"]
[EndTime "10:36:57 PDT"]
[Termination "Zmof won by resignation"]

1. e4 {[%clk 0:02:20.1]} 1... c6 {[%clk 0:00:46.4]} 2. d4 {[%clk 0:02:14.7]}
2... d5 {[%clk 0:00:47.3]} 3. Nc3 {[%clk 0:02:14.1]} 3... dxe4 {[%clk
0:00:45.2]} 4. Nxe4 {[%clk 0:02:14.8]} 4... Nf6 {[%clk 0:00:45.9]} 5. Nxf6+
{[%clk 0:02:13.8]} 5... gxf6 {[%clk 0:00:46.8]} 6. Nf3 {[%clk 0:02:13]} 6... Bg4
{[%clk 0:00:46.6]} 7. Be2 {[%clk 0:02:10.7]} 7... Na6 {[%clk 0:00:46.1]} 8. O-O
{[%clk 0:02:08.8]} 8... Nc7 {[%clk 0:00:44.6]} 9. c4 {[%clk 0:02:04.6]} 9... Qd6
{[%clk 0:00:42.3]} 10. Be3 {[%clk 0:02:02]} 10... e6 {[%clk 0:00:42.2]} 11. h3
{[%clk 0:02:00.6]} 11... Bh5 {[%clk 0:00:41.5]} 12. Qd2 {[%clk 0:01:53.6]} 12...
O-O-O {[%clk 0:00:37.6]} 13. Rfd1 {[%clk 0:01:52.6]} 13... Qb4 {[%clk 0:00:33]}
14. Qc2 {[%clk 0:01:43.2]} 14... Bg6 {[%clk 0:00:32]} 15. Bd3 {[%clk 0:01:42.8]}
15... Bxd3 {[%clk 0:00:30.4]} 16. Rxd3 {[%clk 0:01:42.7]} 16... Rg8 {[%clk
0:00:28.9]} 17. a3 {[%clk 0:01:35.4]} 17... Qd6 {[%clk 0:00:27.9]} 18. b4 {[%clk
0:01:35.2]} 18... f5 {[%clk 0:00:26.2]} 19. Ne5 {[%clk 0:01:31.7]} 19... Qe7
{[%clk 0:00:21.1]} 20. b5 {[%clk 0:01:25.5]} 20... f6 {[%clk 0:00:21]} 21. Nf3
{[%clk 0:01:13.9]} 21... e5 {[%clk 0:00:18.7]} 22. dxe5 {[%clk 0:01:06.8]} 22...
fxe5 {[%clk 0:00:16.5]} 23. Rxd8+ {[%clk 0:01:05.5]} 23... Kxd8 {[%clk
0:00:16.5]} 24. Rd1+ {[%clk 0:01:04.3]} 24... Ke8 {[%clk 0:00:15.5]} 25. Qxf5
{[%clk 0:01:00.8]} 25... e4 {[%clk 0:00:15.3]} 26. Qc8+ {[%clk 0:00:57.9]} 26...
Kf7 {[%clk 0:00:14.7]} 27. Rd7 {[%clk 0:00:57.8]} 27... Bg7 {[%clk 0:00:12.1]}
28. Rxe7+ {[%clk 0:00:55.5]} 28... Kxe7 {[%clk 0:00:13]} 29. Qxg8 {[%clk
0:00:54.4]} 1-0